[Event "Titled Tuesday Blitz October 11 Early 2022"]
[White "Sanchez, Robert"]
[Black "Terzi, Alexei"]
[WhiteFideId "2034360"]
[BlackFideId "13505076"]
[WhiteElo "2413"]
[BlackElo "2172"]
[Result "1-0"]
[Round "08"]
[TimeControl "180+1"]
[Date "2022.10.12"]
[WhiteClock "0:00:04"]
[BlackClock "0:00:07"]

1. e4 {[%clk 0:03:00]}  e6 {[%clk 0:02:59]} 2. d4 {[%clk 0:03:00]}  d5 {[%clk 0:03:00]} 3. Nd2 {[%clk 0:03:01]}  c5 {[%clk 0:02:59]} 4. Ngf3 {[%clk 0:02:56]}  Nc6 {[%clk 0:02:59]} 5. dxc5 {[%clk 0:02:52]}  Bxc5 {[%clk 0:02:57]} 6. Bd3 {[%clk 0:02:50]}  Nf6 {[%clk 0:02:50]} 7. O-O {[%clk 0:02:48]}  Nb4 {[%clk 0:02:45]} 8. e5 {[%clk 0:02:43]}  Ng8 {[%clk 0:02:35]} 9. Be2 {[%clk 0:02:33]}  Ne7 {[%clk 0:02:31]} 10. Nb3 {[%clk 0:02:28]}  Bb6 {[%clk 0:02:28]} 11. a3 {[%clk 0:02:19]}  Nbc6 {[%clk 0:02:27]} 12. Bd3 {[%clk 0:02:18]}  Ng6 {[%clk 0:02:17]} 13. Re1 {[%clk 0:02:12]}  Qc7 {[%clk 0:02:17]} 14. Qe2 {[%clk 0:02:10]}  Bd7 {[%clk 0:02:16]} 15. h4 {[%clk 0:02:01]}  Nge7 {[%clk 0:02:12]} 16. Bf4 {[%clk 0:01:54]}  O-O-O {[%clk 0:02:02]} 17. c3 {[%clk 0:01:48]}  h6 {[%clk 0:01:59]} 18. Nbd4 {[%clk 0:01:42]}  Nxd4 {[%clk 0:01:54]} 19. cxd4 {[%clk 0:01:40]}  Kb8 {[%clk 0:01:51]} 20. b4 {[%clk 0:01:37]}  Ba4 {[%clk 0:01:45]} 21. Rec1 {[%clk 0:01:19]}  Qd7 {[%clk 0:01:45]} 22. b5 {[%clk 0:01:11]}  Rc8 {[%clk 0:01:42]} 23. Qb2 {[%clk 0:01:04]}  Rxc1+ {[%clk 0:01:40]} 24. Rxc1 {[%clk 0:01:01]}  Rc8 {[%clk 0:01:40]} 25. Re1 {[%clk 0:00:45]}  Ba5 {[%clk 0:01:38]} 26. Rc1 {[%clk 0:00:33]}  Rxc1+ {[%clk 0:01:36]} 27. Bxc1 {[%clk 0:00:34]}  Nc8 {[%clk 0:01:28]} 28. Bd2 {[%clk 0:00:31]}  Qc7 {[%clk 0:01:17]} 29. Kh2 {[%clk 0:00:26]}  Bd1 {[%clk 0:01:13]} 30. Ne1 {[%clk 0:00:19]}  Bxd2 {[%clk 0:00:58]} 31. Qxd2 {[%clk 0:00:20]}  Bb3 {[%clk 0:00:57]} 32. Qb4 {[%clk 0:00:18]}  Bc4 {[%clk 0:00:54]} 33. a4 {[%clk 0:00:18]}  Qe7 {[%clk 0:00:52]} 34. Qc3 {[%clk 0:00:16]}  Qxh4+ {[%clk 0:00:51]} 35. Kg1 {[%clk 0:00:17]}  Nb6 {[%clk 0:00:30]} 36. a5 {[%clk 0:00:16]}  Nd7 {[%clk 0:00:18]} 37. Bxc4 {[%clk 0:00:15]}  dxc4 {[%clk 0:00:19]} 38. Qxc4 {[%clk 0:00:15]}  Nxe5 {[%clk 0:00:18]} 39. Qc5 {[%clk 0:00:09]}  Nd7 {[%clk 0:00:14]} 40. Qd6+ {[%clk 0:00:07]}  Kc8 {[%clk 0:00:15]} 41. b6 {[%clk 0:00:08]}  axb6 {[%clk 0:00:14]} 42. axb6 {[%clk 0:00:09]}  Qd8 {[%clk 0:00:13]} 43. d5 {[%clk 0:00:08]}  Qxb6 {[%clk 0:00:13]} 44. Qe7 {[%clk 0:00:08]}  exd5 {[%clk 0:00:12]} 45. Qxf7 {[%clk 0:00:09]}  Qf6 {[%clk 0:00:11]} 46. Qxd5 {[%clk 0:00:08]}  Qe5 {[%clk 0:00:11]} 47. Qg8+ {[%clk 0:00:08]}  Kc7 {[%clk 0:00:11]} 48. Nf3 {[%clk 0:00:09]}  Qa1+ {[%clk 0:00:11]} 49. Kh2 {[%clk 0:00:08]}  Qf6 {[%clk 0:00:12]} 50. Qc4+ {[%clk 0:00:08]}  Qc6 {[%clk 0:00:12]} 51. Qg4 {[%clk 0:00:08]}  Qd6+ {[%clk 0:00:12]} 52. g3 {[%clk 0:00:08]}  g5 {[%clk 0:00:13]} 53. Qf5 {[%clk 0:00:07]}  Nc5 {[%clk 0:00:13]} 54. Ne5 {[%clk 0:00:07]}  Ne6 {[%clk 0:00:12]} 55. Qf7+ {[%clk 0:00:07]}  Kb8 {[%clk 0:00:11]} 56. Qf6 {[%clk 0:00:07]}  Qa6 {[%clk 0:00:08]} 57. Nd7+ {[%clk 0:00:06]}  Ka7 {[%clk 0:00:08]} 58. Qe5 {[%clk 0:00:04]}  Nd8 {[%clk 0:00:07]} 59. Qb8# {[%clk 0:00:04]} 1-0


[Site "https://www.chess.com"]

[Event "Titled Tuesday Blitz October 11 Early 2022"]
[White "Sarana, Alexey"]
[Black "Malek, Jan"]
[WhiteFideId "24133795"]
[BlackFideId "21864080"]
[WhiteElo "2689"]
[BlackElo "2255"]
[Result "1-0"]
[Round "08"]
[TimeControl "180+1"]
[Date "2022.10.11"]
[WhiteClock "0:01:52"]
[BlackClock "0:00:29"]

1. c4 {[%clk 0:02:55]}  Nf6 {[%clk 0:02:59]} 2. Nc3 {[%clk 0:02:56]}  e5 {[%clk 0:02:59]} 3. Nf3 {[%clk 0:02:56]}  Nc6 {[%clk 0:02:57]} 4. g3 {[%clk 0:02:56]}  Bc5 {[%clk 0:02:57]} 5. Bg2 {[%clk 0:02:56]}  d6 {[%clk 0:02:57]} 6. O-O {[%clk 0:02:56]}  O-O {[%clk 0:02:57]} 7. e3 {[%clk 0:02:56]}  a5 {[%clk 0:02:57]} 8. d4 {[%clk 0:02:56]}  Ba7 {[%clk 0:02:57]} 9. h3 {[%clk 0:02:55]}  Re8 {[%clk 0:02:56]} 10. b3 {[%clk 0:02:55]}  Bf5 {[%clk 0:02:55]} 11. Bb2 {[%clk 0:02:54]}  Qd7 {[%clk 0:02:54]} 12. dxe5 {[%clk 0:02:53]}  dxe5 {[%clk 0:02:50]} 13. g4 {[%clk 0:02:51]}  Be6 {[%clk 0:02:17]} 14. Qxd7 {[%clk 0:02:43]}  Nxd7 {[%clk 0:02:18]} 15. Ng5 {[%clk 0:02:43]}  Nc5 {[%clk 0:02:17]} 16. Rfd1 {[%clk 0:02:42]}  Rad8 {[%clk 0:02:14]} 17. Nxe6 {[%clk 0:02:40]}  fxe6 {[%clk 0:02:04]} 18. Nb5 {[%clk 0:02:39]}  Bb6 {[%clk 0:01:59]} 19. Bc3 {[%clk 0:02:36]}  Rf8 {[%clk 0:01:48]} 20. Rxd8 {[%clk 0:02:29]}  Rxd8 {[%clk 0:01:48]} 21. Kf1 {[%clk 0:02:30]}  a4 {[%clk 0:01:38]} 22. b4 {[%clk 0:02:27]}  Na6 {[%clk 0:00:55]} 23. a3 {[%clk 0:02:23]}  Rb8 {[%clk 0:00:39]} 24. c5 {[%clk 0:02:22]}  Na7 {[%clk 0:00:39]} 25. Nxa7 {[%clk 0:02:09]}  Bxa7 {[%clk 0:00:40]} 26. Bxe5 {[%clk 0:02:09]}  b6 {[%clk 0:00:39]} 27. c6 {[%clk 0:02:03]}  b5 {[%clk 0:00:39]} 28. Rd1 {[%clk 0:02:03]}  Bb6 {[%clk 0:00:39]} 29. Ke2 {[%clk 0:02:02]}  Rf8 {[%clk 0:00:36]} 30. Rd7 {[%clk 0:01:57]}  Rf7 {[%clk 0:00:36]} 31. Be4 {[%clk 0:01:55]}  g6 {[%clk 0:00:29]} 32. Rd8+ {[%clk 0:01:52]}  Rf8 {[%clk 0:00:28]} 33. Rxf8+ {[%clk 0:01:52]}  Kxf8 {[%clk 0:00:29]} 34. Bd3 {[%clk 0:01:52]} 1-0


[Site "https://www.chess.com"]

[Event "Titled Tuesday Blitz October 11 Early 2022"]
[White "Shaik Sumer Arsh"]
[Black "Wiegmann, Sascha"]
[WhiteFideId "45020000"]
[BlackFideId "4682041"]
[WhiteElo "2190"]
[BlackElo "2271"]
[Result "1-0"]
[Round "08"]
[TimeControl "180+1"]
[Date "2022.10.12"]
[WhiteClock "0:00:19"]
[BlackClock "0:00:17"]

1. d4 {[%clk 0:02:50]}  Nf6 {[%clk 0:02:58]} 2. Nf3 {[%clk 0:02:38]}  g6 {[%clk 0:02:58]} 3. Bg5 {[%clk 0:02:36]}  Bg7 {[%clk 0:02:58]} 4. Nbd2 {[%clk 0:02:33]}  d5 {[%clk 0:02:58]} 5. e3 {[%clk 0:02:27]}  O-O {[%clk 0:02:58]} 6. Bd3 {[%clk 0:02:28]}  Bf5 {[%clk 0:02:51]} 7. O-O {[%clk 0:02:25]}  c6 {[%clk 0:02:50]} 8. Qe2 {[%clk 0:02:25]}  Nbd7 {[%clk 0:02:46]} 9. Rfe1 {[%clk 0:02:09]}  Re8 {[%clk 0:02:41]} 10. e4 {[%clk 0:02:03]}  dxe4 {[%clk 0:02:33]} 11. Nxe4 {[%clk 0:02:03]}  Nxe4 {[%clk 0:02:33]} 12. Bxe4 {[%clk 0:02:04]}  Bxe4 {[%clk 0:02:33]} 13. Qxe4 {[%clk 0:02:05]}  Nf6 {[%clk 0:02:26]} 14. Qh4 {[%clk 0:02:04]}  Qb6 {[%clk 0:02:18]} 15. b3 {[%clk 0:01:51]}  a5 {[%clk 0:02:14]} 16. Re2 {[%clk 0:01:46]}  a4 {[%clk 0:01:11]} 17. Rae1 {[%clk 0:01:45]}  Qb4 {[%clk 0:01:11]} 18. h3 {[%clk 0:01:20]}  Qd6 {[%clk 0:00:46]} 19. Ne5 {[%clk 0:01:01]}  axb3 {[%clk 0:00:35]} 20. axb3 {[%clk 0:00:59]}  Nd5 {[%clk 0:00:36]} 21. Nc4 {[%clk 0:00:45]}  Qb4 {[%clk 0:00:36]} 22. Bd2 {[%clk 0:00:30]}  Qb5 {[%clk 0:00:35]} 23. Nd6 {[%clk 0:00:28]}  Qxe2 {[%clk 0:00:31]} 24. Rxe2 {[%clk 0:00:27]}  exd6 {[%clk 0:00:32]} 25. Rxe8+ {[%clk 0:00:23]}  Rxe8 {[%clk 0:00:33]} 26. c4 {[%clk 0:00:23]}  Nf6 {[%clk 0:00:33]} 27. Bf4 {[%clk 0:00:22]}  d5 {[%clk 0:00:31]} 28. Be5 {[%clk 0:00:20]}  Ne4 {[%clk 0:00:30]} 29. Bxg7 {[%clk 0:00:21]}  Kxg7 {[%clk 0:00:31]} 30. Qf4 {[%clk 0:00:20]}  Re7 {[%clk 0:00:29]} 31. f3 {[%clk 0:00:19]}  Nf6 {[%clk 0:00:28]} 32. Qd6 {[%clk 0:00:19]}  Rd7 {[%clk 0:00:28]} 33. Qe5 {[%clk 0:00:19]}  dxc4 {[%clk 0:00:27]} 34. bxc4 {[%clk 0:00:19]}  h5 {[%clk 0:00:26]} 35. g4 {[%clk 0:00:18]}  hxg4 {[%clk 0:00:22]} 36. hxg4 {[%clk 0:00:19]}  Re7 {[%clk 0:00:17]} 37. Qxe7 {[%clk 0:00:19]} 1-0


[Site "https://www.chess.com"]

[Event "Titled Tuesday Blitz October 11 Early 2022"]
[White "Shandrygin, Nikita"]
[Black "Grot, Blazej"]
[WhiteFideId "24198668"]
[BlackFideId "21835845"]
[WhiteElo "2323"]
[BlackElo "1739"]
[Result "1-0"]
[Round "08"]
[TimeControl "180+1"]
[Date "2022.10.12"]
[WhiteClock "0:00:28"]
[BlackClock "0:00:39"]

1. e4 {[%clk 0:03:00]}  c5 {[%clk 0:03:00]} 2. Nf3 {[%clk 0:03:01]}  e6 {[%clk 0:03:00]} 3. d4 {[%clk 0:03:01]}  cxd4 {[%clk 0:03:01]} 4. Nxd4 {[%clk 0:03:02]}  Nc6 {[%clk 0:03:01]} 5. Nc3 {[%clk 0:03:03]}  Qc7 {[%clk 0:03:00]} 6. Be3 {[%clk 0:03:02]}  a6 {[%clk 0:03:00]} 7. Be2 {[%clk 0:03:03]}  Nf6 {[%clk 0:03:00]} 8. O-O {[%clk 0:03:03]}  Be7 {[%clk 0:03:01]} 9. f4 {[%clk 0:03:01]}  d6 {[%clk 0:03:01]} 10. Kh1 {[%clk 0:03:00]}  O-O {[%clk 0:03:01]} 11. Qe1 {[%clk 0:03:00]}  Nxd4 {[%clk 0:03:01]} 12. Bxd4 {[%clk 0:03:00]}  b5 {[%clk 0:03:01]} 13. e5 {[%clk 0:02:59]}  dxe5 {[%clk 0:03:00]} 14. fxe5 {[%clk 0:02:53]}  Nd7 {[%clk 0:02:57]} 15. Ne4 {[%clk 0:02:19]}  Bb7 {[%clk 0:02:56]} 16. Nf6+ {[%clk 0:02:04]}  gxf6 {[%clk 0:02:46]} 17. Qg3+ {[%clk 0:01:53]}  Kh8 {[%clk 0:02:45]} 18. exf6 {[%clk 0:01:54]}  Qxg3 {[%clk 0:02:43]} 19. fxe7+ {[%clk 0:01:54]}  e5 {[%clk 0:02:28]} 20. exf8=Q+ {[%clk 0:01:55]}  Rxf8 {[%clk 0:02:23]} 21. hxg3 {[%clk 0:01:53]}  exd4 {[%clk 0:02:22]} 22. Bf3 {[%clk 0:01:51]}  Bxf3 {[%clk 0:02:12]} 23. Rxf3 {[%clk 0:01:52]}  Ne5 {[%clk 0:02:11]} 24. Rf5 {[%clk 0:01:52]}  f6 {[%clk 0:02:11]} 25. Rf4 {[%clk 0:01:40]}  d3 {[%clk 0:02:04]} 26. cxd3 {[%clk 0:01:10]}  Nxd3 {[%clk 0:02:05]} 27. Rd4 {[%clk 0:00:57]}  Nxb2 {[%clk 0:02:03]} 28. Re1 {[%clk 0:00:54]}  Nc4 {[%clk 0:01:56]} 29. Rd7 {[%clk 0:00:49]}  Ne5 {[%clk 0:01:19]} 30. Ra7 {[%clk 0:00:48]}  Rf7 {[%clk 0:01:13]} 31. Rxf7 {[%clk 0:00:45]}  Nxf7 {[%clk 0:01:12]} 32. Re6 {[%clk 0:00:46]}  a5 {[%clk 0:01:11]} 33. Rxf6 {[%clk 0:00:45]}  Kg7 {[%clk 0:01:10]} 34. Rb6 {[%clk 0:00:41]}  b4 {[%clk 0:01:07]} 35. Rb5 {[%clk 0:00:41]}  Nd6 {[%clk 0:01:02]} 36. Rxa5 {[%clk 0:00:40]}  Ne4 {[%clk 0:01:01]} 37. Ra4 {[%clk 0:00:33]}  Nc3 {[%clk 0:00:57]} 38. Rxb4 {[%clk 0:00:31]}  Nxa2 {[%clk 0:00:57]} 39. Rc4 {[%clk 0:00:31]}  Kf6 {[%clk 0:00:55]} 40. Kh2 {[%clk 0:00:30]}  Ke5 {[%clk 0:00:54]} 41. Kh3 {[%clk 0:00:27]}  Kd5 {[%clk 0:00:53]} 42. Rh4 {[%clk 0:00:27]}  Nc3 {[%clk 0:00:51]} 43. Rxh7 {[%clk 0:00:28]}  Ne4 {[%clk 0:00:50]} 44. Ra7 {[%clk 0:00:24]}  Ke6 {[%clk 0:00:48]} 45. Kg4 {[%clk 0:00:22]}  Nf2+ {[%clk 0:00:47]} 46. Kf3 {[%clk 0:00:21]}  Nd3 {[%clk 0:00:46]} 47. Ra5 {[%clk 0:00:17]}  Ne5+ {[%clk 0:00:44]} 48. Rxe5+ {[%clk 0:00:17]}  Kxe5 {[%clk 0:00:44]} 49. g4 {[%clk 0:00:18]}  Kf6 {[%clk 0:00:45]} 50. Kf4 {[%clk 0:00:19]}  Kg6 {[%clk 0:00:45]} 51. g5 {[%clk 0:00:19]}  Kg7 {[%clk 0:00:45]} 52. Kf5 {[%clk 0:00:20]}  Kf7 {[%clk 0:00:45]} 53. g6+ {[%clk 0:00:21]}  Kg7 {[%clk 0:00:46]} 54. Kg5 {[%clk 0:00:22]}  Kg8 {[%clk 0:00:46]} 55. Kf6 {[%clk 0:00:22]}  Kf8 {[%clk 0:00:46]} 56. g4 {[%clk 0:00:23]}  Kg8 {[%clk 0:00:46]} 57. g7 {[%clk 0:00:24]}  Kh7 {[%clk 0:00:42]} 58. Kf7 {[%clk 0:00:24]}  Kh6 {[%clk 0:00:39]} 59. g5+ {[%clk 0:00:25]}  Kh5 {[%clk 0:00:37]} 60. g8=Q {[%clk 0:00:26]}  Kg4 {[%clk 0:00:37]} 61. g6 {[%clk 0:00:26]}  Kf3 {[%clk 0:00:37]} 62. g7 {[%clk 0:00:27]}  Ke3 {[%clk 0:00:38]} 63. Qh8 {[%clk 0:00:28]}  Kd3 {[%clk 0:00:38]} 64. g8=Q {[%clk 0:00:28]}  Kc4 {[%clk 0:00:38]} 65. Qh4+ {[%clk 0:00:29]}  Kb5 {[%clk 0:00:38]} 66. Qgg5+ {[%clk 0:00:29]}  Kc6 {[%clk 0:00:39]} 67. Qc4+ {[%clk 0:00:28]}  Kd7 {[%clk 0:00:39]} 68. Qgd5# {[%clk 0:00:28]} 1-0


[Site "https://www.chess.com"]

[Event "Titled Tuesday Blitz October 11 Early 2022"]
[White "Shimanov, Aleksandr"]
[Black "Hambleton, Aman"]
[WhiteFideId "4198603"]
[BlackFideId "2606577"]
[WhiteElo "2605"]
[BlackElo "2538"]
[Result "0-1"]
[Round "08"]
[TimeControl "180+1"]
[Date "2022.10.11"]
[WhiteClock "0:00:10"]
[BlackClock "0:00:09"]

1. e4 {[%clk 0:03:00]}  c5 {[%clk 0:02:52]} 2. Nf3 {[%clk 0:03:00]}  e6 {[%clk 0:02:50]} 3. g3 {[%clk 0:02:58]}  Nc6 {[%clk 0:02:42]} 4. Bg2 {[%clk 0:02:58]}  Nf6 {[%clk 0:02:41]} 5. Qe2 {[%clk 0:02:57]}  d6 {[%clk 0:02:38]} 6. O-O {[%clk 0:02:57]}  Be7 {[%clk 0:02:37]} 7. c3 {[%clk 0:02:47]}  e5 {[%clk 0:02:36]} 8. Rd1 {[%clk 0:02:46]}  Qc7 {[%clk 0:02:20]} 9. h3 {[%clk 0:02:41]}  O-O {[%clk 0:02:18]} 10. Na3 {[%clk 0:02:21]}  Re8 {[%clk 0:02:12]} 11. d4 {[%clk 0:02:12]}  exd4 {[%clk 0:01:54]} 12. cxd4 {[%clk 0:02:12]}  Bf8 {[%clk 0:01:55]} 13. dxc5 {[%clk 0:01:58]}  Nxe4 {[%clk 0:00:46]} 14. Bf4 {[%clk 0:00:44]}  Bf5 {[%clk 0:00:21]} 15. cxd6 {[%clk 0:00:29]}  Nxd6 {[%clk 0:00:10]} 16. Qd2 {[%clk 0:00:28]}  Rad8 {[%clk 0:00:07]} 17. Nd4 {[%clk 0:00:21]}  Nxd4 {[%clk 0:00:04]} 18. Qxd4 {[%clk 0:00:22]}  Qb6 {[%clk 0:00:02]} 19. Qxb6 {[%clk 0:00:17]}  axb6 {[%clk 0:00:03]} 20. Rac1 {[%clk 0:00:17]}  Be6 {[%clk 0:00:03]} 21. b3 {[%clk 0:00:16]}  h6 {[%clk 0:00:03]} 22. Nc2 {[%clk 0:00:15]}  Nb5 {[%clk 0:00:03]} 23. Ne3 {[%clk 0:00:11]}  Ba3 {[%clk 0:00:02]} 24. Rxd8 {[%clk 0:00:09]}  Rxd8 {[%clk 0:00:02]} 25. Rd1 {[%clk 0:00:10]}  Rxd1+ {[%clk 0:00:01]} 26. Nxd1 {[%clk 0:00:11]}  Bc8 {[%clk 0:00:01]} 27. Be3 {[%clk 0:00:11]}  Bc5 {[%clk 0:00:01]} 28. Kf1 {[%clk 0:00:09]}  Bxe3 {[%clk 0:00:01]} 29. Nxe3 {[%clk 0:00:10]}  Nc3 {[%clk 0:00:01]} 30. a3 {[%clk 0:00:09]}  Kf8 {[%clk 0:00:01]} 31. Ke1 {[%clk 0:00:09]}  Nb5 {[%clk 0:00:02]} 32. Nc2 {[%clk 0:00:08]}  Ke7 {[%clk 0:00:01]} 33. Kd2 {[%clk 0:00:08]}  Kd6 {[%clk 0:00:02]} 34. a4 {[%clk 0:00:08]}  Nc7 {[%clk 0:00:02]} 35. Ne3 {[%clk 0:00:08]}  b5 {[%clk 0:00:02]} 36. a5 {[%clk 0:00:08]}  b4 {[%clk 0:00:02]} 37. Nc2 {[%clk 0:00:07]}  Kc5 {[%clk 0:00:02]} 38. Ke3 {[%clk 0:00:05]}  Be6 {[%clk 0:00:02]} 39. Nd4 {[%clk 0:00:05]}  Bd5 {[%clk 0:00:02]} 40. Bf1 {[%clk 0:00:06]}  Ne6 {[%clk 0:00:02]} 41. Nxe6+ {[%clk 0:00:03]}  Bxe6 {[%clk 0:00:02]} 42. Kd2 {[%clk 0:00:03]}  Kd4 {[%clk 0:00:02]} 43. Kc2 {[%clk 0:00:03]}  Bd5 {[%clk 0:00:02]} 44. Be2 {[%clk 0:00:03]}  Be4+ {[%clk 0:00:02]} 45. Kb2 {[%clk 0:00:03]}  g5 {[%clk 0:00:02]} 46. h4 {[%clk 0:00:03]}  f6 {[%clk 0:00:02]} 47. Bf1 {[%clk 0:00:03]}  Kc5 {[%clk 0:00:02]} 48. Be2 {[%clk 0:00:03]}  Bd5 {[%clk 0:00:02]} 49. Kc2 {[%clk 0:00:03]}  Kd4 {[%clk 0:00:02]} 50. Kd2 {[%clk 0:00:04]}  gxh4 {[%clk 0:00:03]} 51. gxh4 {[%clk 0:00:04]}  Bxb3 {[%clk 0:00:03]} 52. Bf3 {[%clk 0:00:04]}  Bd5 {[%clk 0:00:04]} 53. Be2 {[%clk 0:00:04]}  Bc4 {[%clk 0:00:04]} 54. Bf3 {[%clk 0:00:04]}  Bd5 {[%clk 0:00:03]} 55. Bd1 {[%clk 0:00:04]}  Kc5 {[%clk 0:00:03]} 56. Kd3 {[%clk 0:00:04]}  Kb5 {[%clk 0:00:03]} 57. Kd4 {[%clk 0:00:05]}  Bf7 {[%clk 0:00:03]} 58. Ke4 {[%clk 0:00:05]}  Be6 {[%clk 0:00:03]} 59. Kd4 {[%clk 0:00:05]}  Kxa5 {[%clk 0:00:03]} 60. Kc5 {[%clk 0:00:05]}  b3 {[%clk 0:00:03]} 61. Kd6 {[%clk 0:00:06]}  b2 {[%clk 0:00:04]} 62. Bc2 {[%clk 0:00:06]}  Ba2 {[%clk 0:00:04]} 63. Ke7 {[%clk 0:00:06]}  b1=Q {[%clk 0:00:04]} 64. Bxb1 {[%clk 0:00:06]}  Bxb1 {[%clk 0:00:05]} 65. Kxf6 {[%clk 0:00:07]}  b5 {[%clk 0:00:06]} 66. f4 {[%clk 0:00:07]}  b4 {[%clk 0:00:06]} 67. f5 {[%clk 0:00:06]}  b3 {[%clk 0:00:07]} 68. Kg6 {[%clk 0:00:06]}  Bxf5+ {[%clk 0:00:08]} 69. Kxh6 {[%clk 0:00:07]}  b2 {[%clk 0:00:08]} 70. h5 {[%clk 0:00:08]}  Bg4 {[%clk 0:00:08]} 71. Kg7 {[%clk 0:00:09]}  Bxh5 {[%clk 0:00:09]} 72. Kh8 {[%clk 0:00:09]}  b1=Q {[%clk 0:00:07]} 73. Kg7 {[%clk 0:00:09]}  Qb6 {[%clk 0:00:07]} 74. Kh7 {[%clk 0:00:09]}  Bf3 {[%clk 0:00:08]} 75. Kh8 {[%clk 0:00:10]}  Bh1 {[%clk 0:00:09]} 0-1


[Site "https://www.chess.com"]

[Event "Titled Tuesday Blitz October 11 Early 2022"]
[White "Shipov, Sergei"]
[Black "Vignesh, N R"]
[WhiteFideId "4113624"]
[BlackFideId "25012215"]
[WhiteElo "2787"]
[BlackElo "2386"]
[Result "1/2-1/2"]
[Round "08"]
[TimeControl "180+1"]
[Date "2022.10.11"]
[WhiteClock "0:00:32"]
[BlackClock "0:00:19"]

1. d4 {[%clk 0:03:00]}  Nf6 {[%clk 0:02:59]} 2. c4 {[%clk 0:03:01]}  e6 {[%clk 0:02:59]} 3. Nc3 {[%clk 0:03:01]}  Bb4 {[%clk 0:02:59]} 4. Qc2 {[%clk 0:03:01]}  O-O {[%clk 0:02:57]} 5. a3 {[%clk 0:03:01]}  Bxc3+ {[%clk 0:02:57]} 6. Qxc3 {[%clk 0:03:02]}  b6 {[%clk 0:02:58]} 7. Bg5 {[%clk 0:03:01]}  Bb7 {[%clk 0:02:58]} 8. e3 {[%clk 0:03:02]}  d6 {[%clk 0:02:58]} 9. Ne2 {[%clk 0:03:02]}  Nbd7 {[%clk 0:02:58]} 10. Qc2 {[%clk 0:03:02]}  h6 {[%clk 0:02:56]} 11. Bh4 {[%clk 0:03:02]}  c5 {[%clk 0:02:57]} 12. Rd1 {[%clk 0:03:01]}  Qe7 {[%clk 0:02:55]} 13. Nc3 {[%clk 0:03:01]}  cxd4 {[%clk 0:02:54]} 14. Rxd4 {[%clk 0:03:00]}  Rfd8 {[%clk 0:02:54]} 15. f3 {[%clk 0:02:58]}  Rac8 {[%clk 0:02:53]} 16. Be2 {[%clk 0:02:53]}  g5 {[%clk 0:02:46]} 17. Bg3 {[%clk 0:02:52]}  d5 {[%clk 0:02:46]} 18. O-O {[%clk 0:02:50]}  e5 {[%clk 0:02:44]} 19. Rd2 {[%clk 0:02:50]}  dxc4 {[%clk 0:02:28]} 20. Qf5 {[%clk 0:02:48]}  Qe6 {[%clk 0:02:13]} 21. Qxe6 {[%clk 0:02:48]}  fxe6 {[%clk 0:02:14]} 22. e4 {[%clk 0:02:36]}  Nc5 {[%clk 0:02:01]} 23. Rxd8+ {[%clk 0:02:33]}  Rxd8 {[%clk 0:02:02]} 24. Bxe5 {[%clk 0:02:34]}  Nfd7 {[%clk 0:01:58]} 25. Bc7 {[%clk 0:02:18]}  Rc8 {[%clk 0:01:56]} 26. Bg3 {[%clk 0:02:17]}  Ba6 {[%clk 0:01:48]} 27. Rd1 {[%clk 0:02:14]}  Nd3 {[%clk 0:01:48]} 28. Bf2 {[%clk 0:02:00]}  N7e5 {[%clk 0:01:44]} 29. Rd2 {[%clk 0:01:56]}  Kf7 {[%clk 0:01:38]} 30. g3 {[%clk 0:01:55]}  Ke7 {[%clk 0:01:35]} 31. Be3 {[%clk 0:01:54]}  Rf8 {[%clk 0:01:32]} 32. Kg2 {[%clk 0:01:53]}  Nxf3 {[%clk 0:01:30]} 33. Bxf3 {[%clk 0:01:45]}  Ne1+ {[%clk 0:01:30]} 34. Kh3 {[%clk 0:01:45]}  Nxf3 {[%clk 0:01:28]} 35. Rd1 {[%clk 0:01:39]}  Ne5 {[%clk 0:01:27]} 36. a4 {[%clk 0:01:37]}  Nd3 {[%clk 0:01:20]} 37. a5 {[%clk 0:01:37]}  b5 {[%clk 0:01:13]} 38. Bxa7 {[%clk 0:01:35]}  b4 {[%clk 0:01:11]} 39. Na4 {[%clk 0:01:34]}  e5 {[%clk 0:00:53]} 40. Bc5+ {[%clk 0:01:13]}  Nxc5 {[%clk 0:00:48]} 41. Nxc5 {[%clk 0:01:14]}  Bc8+ {[%clk 0:00:47]} 42. Kg2 {[%clk 0:01:12]}  Bg4 {[%clk 0:00:48]} 43. Rc1 {[%clk 0:01:11]}  Bf3+ {[%clk 0:00:42]} 44. Kg1 {[%clk 0:01:09]}  Be2 {[%clk 0:00:41]} 45. Rc2 {[%clk 0:01:04]}  Bd3 {[%clk 0:00:32]} 46. Nxd3 {[%clk 0:01:03]}  cxd3 {[%clk 0:00:33]} 47. Rd2 {[%clk 0:01:03]}  Ra8 {[%clk 0:00:29]} 48. Rxd3 {[%clk 0:01:03]}  Rxa5 {[%clk 0:00:29]} 49. Kf2 {[%clk 0:01:00]}  Ra1 {[%clk 0:00:25]} 50. Rb3 {[%clk 0:01:00]}  Ra4 {[%clk 0:00:25]} 51. Ke3 {[%clk 0:01:00]}  Kd6 {[%clk 0:00:24]} 52. Rd3+ {[%clk 0:00:57]}  Ke6 {[%clk 0:00:24]} 53. Kd2 {[%clk 0:00:53]}  Ra1 {[%clk 0:00:22]} 54. Re3 {[%clk 0:00:43]}  Rh1 {[%clk 0:00:20]} 55. Re2 {[%clk 0:00:44]}  Kd6 {[%clk 0:00:21]} 56. Kc2 {[%clk 0:00:43]}  Kc5 {[%clk 0:00:20]} 57. Kb3 {[%clk 0:00:44]}  g4 {[%clk 0:00:20]} 58. Rd2 {[%clk 0:00:44]}  Kc6 {[%clk 0:00:19]} 59. Kxb4 {[%clk 0:00:43]}  Re1 {[%clk 0:00:19]} 60. Rc2+ {[%clk 0:00:42]}  Kb6 {[%clk 0:00:19]} 61. Rc4 {[%clk 0:00:40]}  Re2 {[%clk 0:00:18]} 62. b3 {[%clk 0:00:41]}  Rxh2 {[%clk 0:00:19]} 63. Rc5 {[%clk 0:00:41]}  Rh3 {[%clk 0:00:18]} 64. Rxe5 {[%clk 0:00:41]}  h5 {[%clk 0:00:18]} 65. Rg5 {[%clk 0:00:41]}  Rxg3 {[%clk 0:00:17]} 66. Rxh5 {[%clk 0:00:41]}  Re3 {[%clk 0:00:18]} 67. Rh6+ {[%clk 0:00:38]}  Kc7 {[%clk 0:00:18]} 68. Re6 {[%clk 0:00:35]}  Kd7 {[%clk 0:00:18]} 69. Re5 {[%clk 0:00:34]}  Kd6 {[%clk 0:00:18]} 70. Re8 {[%clk 0:00:34]}  Kd7 {[%clk 0:00:19]} 71. Rg8 {[%clk 0:00:35]}  Rxe4+ {[%clk 0:00:19]} 72. Kc5 {[%clk 0:00:35]}  Re5+ {[%clk 0:00:18]} 73. Kd4 {[%clk 0:00:34]}  Re1 {[%clk 0:00:18]} 74. Rxg4 {[%clk 0:00:33]}  Kc6 {[%clk 0:00:18]} 75. Rg5 {[%clk 0:00:33]}  Re6 {[%clk 0:00:17]} 76. Kc4 {[%clk 0:00:33]}  Rh6 {[%clk 0:00:17]} 77. Ra5 {[%clk 0:00:31]}  Rh4+ {[%clk 0:00:16]} 78. Kc3 {[%clk 0:00:31]}  Kb6 {[%clk 0:00:17]} 79. Rd5 {[%clk 0:00:31]}  Rh3+ {[%clk 0:00:18]} 80. Kc4 {[%clk 0:00:31]}  Rh4+ {[%clk 0:00:18]} 81. Rd4 {[%clk 0:00:31]}  Rxd4+ {[%clk 0:00:18]} 82. Kxd4 {[%clk 0:00:31]}  Kb5 {[%clk 0:00:19]} 83. b4 {[%clk 0:00:32]}  Kxb4 {[%clk 0:00:19]} 1/2-1/2


[Site "https://www.chess.com"]